fUST/lending_fUST_20260228
["ID","MTS","AMOUNT","RATE_DAILY","PERIOD"]
[406894969,1772267496028,-500.0,0.00015342,2]
[406894970,1772267496038,-659.85,0.00015342,2]
[406894971,1772267496047,-1134.79,0.00015342,2]
[406894972,1772267496057,-379.29589973,0.00015342,2]
[406894973,1772267496066,-500.0,0.00015342,2]
[406894974,1772267496075,-11125.25,0.00015342,2]
[406894975,1772267496085,-7153.51,0.00015342,2]
[406894976,1772267496094,-648.35,0.00015342,2]
[406894977,1772267496104,-5078.3,0.00015342,2]
[406894978,1772267496115,-683.43,0.00015342,2]
[406894979,1772267496125,-2723.16,0.00015342,2]
[406894980,1772267496138,-500.0,0.00015342,2]
[406894981,1772267496147,-500.0,0.00015342,2]
[406894982,1772267496157,-4724.28,0.00015342,2]
[406894983,1772267496167,-500.0,0.00015342,2]
[406894984,1772267496177,-500.0,0.00015342,2]
[406894985,1772267496187,-739.63,0.00015342,2]
[406894986,1772267496196,-500.0,0.00015342,2]
[406894987,1772267496206,-500.0,0.00015342,2]
[406894988,1772267496218,-500.0,0.00015342,2]
[406894989,1772267496227,-500.0,0.00015342,2]
[406894990,1772267496237,-500.0,0.00015342,2]
[406894991,1772267496247,-4297.64,0.00015342,2]
[406894992,1772267496255,-737.38,0.00015342,2]
[406894993,1772267496265,-2549.64,0.00015342,2]
[406894994,1772267496274,-500.0,0.00015342,2]
[406894995,1772267496284,-500.0,0.00015342,2]
[406894996,1772267496293,-2640.18,0.00015342,2]
[406894997,1772267496302,-1171.08,0.00015342,2]
[406894998,1772267496311,-7472.22,0.00015342,2]
[406894999,1772267496320,-500.0,0.00015342,2]
[406895000,1772267496329,-530.37,0.00015342,2]
[406895001,1772267496338,-1765.65,0.00015342,2]
[406895002,1772267496347,-500.0,0.00015342,2]
[406895003,1772267496357,-500.0,0.00015342,2]
[406895004,1772267496366,-363.0871457,0.00015342,2]
[406895005,1772267496376,-1444.95,0.00015342,2]
[406895006,1772267496385,-4088.91,0.00015342,2]
[406895007,1772267496396,-2445.15,0.00015342,2]
[406895008,1772267496404,-2774.65,0.00015342,2]
[406895009,1772267496413,-500.0,0.00015342,2]
[406895010,1772267496423,-3783.55,0.00015342,2]
[406895011,1772267496432,-577.60211687,0.00015342,2]
[406895012,1772267496442,-500.0,0.00015342,2]
[406895013,1772267496451,-1333.68,0.00015342,2]
[406895014,1772267496460,-14153.91,0.00015342,2]
[406895015,1772267496470,-500.0,0.00015342,2]
[406895016,1772267496479,-500.0,0.00015342,2]
[406895017,1772267496490,-3218.57,0.00015342,2]
[406895018,1772267496500,-2092.55,0.00015342,2]
[406895019,1772267496510,-500.0,0.00015342,2]
[406895020,1772267496520,-2893.22,0.00015342,2]
[406895021,1772267496530,-2259.28,0.00015342,2]
[406895022,1772267496539,-500.0,0.00015342,2]
[406895023,1772267496549,-1798.11,0.00015342,2]
[406895024,1772267496558,-540.91,0.00015342,2]
[406895025,1772267496567,-500.0,0.00015342,2]
[406895026,1772267496577,-500.0,0.00015342,2]
[406895027,1772267496586,-500.0,0.00015342,2]
[406895028,1772267496596,-16752.77,0.00015342,2]
[406895029,1772267496605,-500.0,0.00015342,2]
[406895030,1772267496614,-1638.09,0.00015342,2]
[406895031,1772267496623,-500.97,0.00015342,2]
[406895032,1772267496633,-526.47,0.00015342,2]
[406895033,1772267496642,-500.0,0.00015342,2]
[406895034,1772267496652,-500.0,0.00015342,2]
[406895035,1772267496661,-4470.34,0.00015342,2]
[406895036,1772267496670,-2160.15,0.00015342,2]
[406895037,1772267496680,-500.0,0.00015342,2]
[406895038,1772267496689,-500.0,0.00015342,2]
[406895039,1772267496699,-587.54,0.00015342,2]
[406895040,1772267496708,-611.61,0.00015342,2]
[406895041,1772267496718,-679.97,0.00015342,2]
[406895042,1772267496727,-500.0,0.00015342,2]
[406895043,1772267496737,-62454.68,0.00015342,2]
[406895044,1772267496746,-4931.54,0.00015342,2]
[406895045,1772267496888,-691.25,0.00015342,2]
[406895046,1772267496898,-500.0,0.00015342,2]
[406895047,1772267496907,-2603.07,0.00015342,2]
[406895048,1772267496916,-7026.09,0.00015342,2]
[406895049,1772267496926,-500.0,0.00015342,2]
[406895050,1772267496935,-668.0,0.00015342,2]
[406895051,1772267496945,-1193.68,0.00015342,2]
[406895052,1772267496954,-635.83,0.00015342,2]
[406895053,1772267496964,-500.0,0.00015342,2]
[406895054,1772267496974,-500.0,0.00015342,2]
[406895055,1772267496983,-1018.54,0.00015342,2]
[406895056,1772267496993,-500.0,0.00015342,2]
[406895057,1772267497002,-8795.12,0.00015342,2]
[406895058,1772267497011,-500.0,0.00015342,2]
[406895059,1772267497020,-511.19,0.00015342,2]
[406895060,1772267497030,-2059.67,0.00015342,2]
[406895061,1772267497039,-500.0,0.00015342,2]
[406895062,1772267497048,-500.0,0.00015342,2]
[406895063,1772267497058,-2791.04,0.00015342,2]
[406895064,1772267497068,-500.0,0.00015342,2]
[406895065,1772267497078,-4120.89,0.00015342,2]
[406895066,1772267497088,-500.0,0.00015342,2]
[406895067,1772267497097,-738.7,0.00015342,2]
[406895068,1772267497106,-500.0,0.00015342,2]
[406895069,1772267497115,-858.19,0.00015342,2]
[406895070,1772267497125,-500.0,0.00015342,2]
[406895071,1772267497135,-1094.77,0.00015342,2]
[406895072,1772267497147,-1558.46,0.00015342,2]
[406895073,1772267497157,-500.0,0.00015342,2]
[406895074,1772267497166,-3104.3,0.00015342,2]
[406895075,1772267497176,-41294.65,0.00015342,2]
[406895076,1772267497185,-500.0,0.00015342,2]
[406895077,1772267497194,-500.0,0.00015342,2]
[406895078,1772267497203,-500.0,0.00015342,2]
[406895079,1772267497214,-500.0,0.00015342,2]
[406895080,1772267497225,-4305.9,0.00015342,2]
[406895081,1772267497235,-1079.08,0.00015342,2]
[406895082,1772267497246,-829.59,0.00015342,2]
[406895083,1772267497255,-1590.25,0.00015342,2]
[406895084,1772267497265,-17553.64,0.00015342,2]
[406895085,1772267497275,-836.94,0.00015342,2]
[406895086,1772267497285,-2501.06,0.00015342,2]
[406895087,1772267497295,-624.89,0.00015342,2]
[406895088,1772267497305,-500.0,0.00015342,2]
[406895089,1772267497315,-500.0,0.00015342,2]
[406895090,1772267497324,-500.0,0.00015342,2]
[406895091,1772267497333,-587.66,0.00015342,2]
[406895092,1772267497343,-612.52,0.00015342,2]
[406895093,1772267497353,-798.52,0.00015342,2]
[406895094,1772267497363,-920.96,0.00015342,2]
[406895095,1772267497372,-833.23,0.00015342,2]
[406895096,1772267497382,-502.1,0.00015342,2]
[406895097,1772267497392,-1661.19,0.00015342,2]
[406895098,1772267497402,-500.0,0.00015342,2]
[406895099,1772267497411,-884.15,0.00015342,2]
[406895100,1772267497421,-997.87,0.00015342,2]
[406895101,1772267497431,-714.12,0.00015342,2]
[406895102,1772267497441,-2806.98,0.00015342,2]
[406895103,1772267497451,-3389.85,0.00015342,2]
[406895104,1772267497462,-500.0,0.00015342,2]
[406895105,1772267497472,-500.0,0.00015342,2]
[406895106,1772267497481,-736.98,0.00015342,2]
[406895107,1772267497493,-500.0,0.00015342,2]
[406895108,1772267497504,-500.0,0.00015342,2]
[406895109,1772267497514,-3040.54,0.00015342,2]
[406895110,1772267497524,-500.0,0.00015342,2]
[406895111,1772267497533,-1624.77,0.00015342,2]
[406895112,1772267497543,-8862.41,0.00015342,2]
[406895113,1772267497553,-21682.96,0.00015342,2]
[406895114,1772267497562,-1097.26,0.00015342,2]
[406895115,1772267497572,-500.0,0.00015342,2]
[406895116,1772267497582,-7502.8,0.00015342,2]
[406895117,1772267497592,-500.0,0.00015342,2]
[406895118,1772267497602,-500.0,0.00015342,2]
[406895119,1772267497612,-565.02,0.00015342,2]
[406895120,1772267497622,-6625.37,0.00015342,2]
[406895121,1772267497631,-500.0,0.00015342,2]
[406895122,1772267497640,-2462.23,0.00015342,2]
[406895123,1772267497650,-1430.4,0.00015342,2]
[406895124,1772267497662,-1591.21,0.00015342,2]
[406895125,1772267497671,-500.0,0.00015342,2]
[406895126,1772267497681,-1097.85,0.00015342,2]
[406895127,1772267497690,-941.74,0.00015342,2]
[406895128,1772267497700,-2991.59,0.00015342,2]
[406895129,1772267497710,-1208.52,0.00015342,2]
[406895130,1772267497720,-500.0,0.00015342,2]
[406895131,1772267497729,-1852.72,0.00015342,2]
[406895132,1772267497739,-500.0,0.00015342,2]
[406895133,1772267497748,-500.0,0.00015342,2]
[406895134,1772267497758,-500.0,0.00015342,2]
[406895135,1772267497767,-2739.1,0.00015342,2]
[406895136,1772267497777,-500.0,0.00015342,2]
[406895137,1772267497786,-3806.49,0.00015342,2]
[406895138,1772267497795,-7703.07,0.00015342,2]
[406895139,1772267497806,-515.24,0.00015342,2]
[406895140,1772267497815,-500.0,0.00015342,2]
[406895141,1772267497825,-500.0,0.00015342,2]
[406895142,1772267497834,-1723.78,0.00015342,2]
[406895143,1772267497844,-593.1008003,0.00015342,2]
[406895144,1772267497853,-1269.75,0.00015342,2]
[406895145,1772267497868,-500.0,0.00015342,2]
[406895146,1772267497888,-2065.59,0.00015342,2]
[406895147,1772267497911,-500.0,0.00015342,2]
[406895148,1772267497928,-500.0,0.00015342,2]
[406895149,1772267497948,-2115.78,0.00015342,2]
[406895150,1772267497965,-500.0,0.00015342,2]
[406895151,1772267497981,-1897.54,0.00015342,2]
[406895152,1772267498000,-500.0,0.00015342,2]
[406895153,1772267498015,-3092.48,0.00015342,2]
[406895154,1772267498033,-500.0,0.00015342,2]
[406895155,1772267498052,-500.0,0.00015342,2]
[406895156,1772267498071,-922.16,0.00015342,2]
[406895157,1772267498083,-1034.45,0.00015342,2]
[406895158,1772267498103,-4771.37,0.00015342,2]
[406895159,1772267498118,-500.0,0.00015342,2]
[406895160,1772267498136,-1231.85,0.00015342,2]
[406895161,1772267498152,-500.0,0.00015342,2]
[406895162,1772267498166,-703.38,0.00015342,2]
[406895163,1772267498183,-2000.0,0.00015342,2]
[406895164,1772267498199,-744.89972287,0.00015385,2]
[406895165,1772267498215,-2500.0,0.00015464,2]
[406895166,1772267498229,-500.0,0.00015616,2]
[406895167,1772267498245,-500.0,0.00015616,2]
[406895168,1772267498261,-282.17567179,0.00015616,2]
[406895169,1772267498275,-607.58,0.00015616,2]
[406895170,1772267498290,-500.0,0.00015616,2]
[406895171,1772267498305,-980.59,0.00015616,2]
[406895172,1772267498320,-500.0,0.00015616,2]
[406895173,1772267498334,-500.0,0.00015616,2]
[406895174,1772267498348,-500.0,0.00015616,2]
[406895175,1772267498363,-500.0,0.00015616,2]
[406895176,1772267498378,-1353.85,0.00015616,2]
[406895177,1772267498392,-1322.07,0.00015616,2]
[406895178,1772267498406,-692.0,0.00015616,2]
[406895179,1772267498421,-500.0,0.00015616,2]
[406895180,1772267498435,-564.22,0.00015616,2]
[406895181,1772267498450,-520.93,0.00015616,2]
[406895182,1772267498464,-500.0,0.00015616,2]
[406895183,1772267498478,-500.0,0.00015616,2]
[406895184,1772267498496,-500.0,0.00015616,2]
[406895185,1772267498511,-1711.44,0.00015616,2]
[406895186,1772267498525,-2726.35,0.00015616,2]
[406895187,1772267498540,-500.0,0.00015616,2]
[406895188,1772267498555,-1744.45,0.00015616,2]
[406895189,1772267498570,-500.0,0.00015616,2]
[406895190,1772267498585,-500.0,0.00015616,2]
[406895191,1772267498600,-500.0,0.00015616,2]
[406895192,1772267498614,-611.34296201,0.00015616,2]
[406895193,1772267498630,-1041.8,0.00015616,2]
[406895194,1772267498644,-2718.46,0.00015616,2]
[406895195,1772267498659,-737.4,0.00015616,2]
[406895196,1772267498673,-500.0,0.00015616,2]
[406895197,1772267498687,-500.0,0.00015616,2]
[406895198,1772267498702,-770.65,0.00015616,2]
[406895199,1772267498715,-902.4,0.00015616,2]
[406895200,1772267498731,-989.47,0.00015616,2]
[406895201,1772267498745,-558.27,0.00015616,2]
[406895202,1772267498760,-516.72453257,0.00015616,2]
[406895203,1772267498775,-603.96,0.00015616,2]
[406895204,1772267498789,-500.0,0.00015616,2]
[406895205,1772267498804,-500.58,0.00015616,2]
[406895206,1772267498819,-500.0,0.00015616,2]
[406895207,1772267498833,-2062.12,0.00015616,2]
[406895208,1772267498849,-719.5,0.00015616,2]
[406895209,1772267498865,-525.56,0.00015616,2]
[406895210,1772267498879,-500.0,0.00015616,2]
[406895211,1772267498893,-500.0,0.00015616,2]
[406895212,1772267498908,-500.0,0.00015616,2]
[406895213,1772267498922,-500.0,0.00015616,2]
[406895214,1772267498937,-546.89,0.00015616,2]
[406895215,1772267498951,-1727.31,0.00015616,2]
[406895216,1772267498965,-500.0,0.00015616,2]
[406895217,1772267498980,-181.65149692,0.00015616,2]
[406895218,1772267498995,-514.02,0.00015616,2]
[406895219,1772267499010,-275.36922963,0.00015616,2]
[406895220,1772267499024,-500.0,0.00015616,2]
[406895221,1772267499039,-500.0,0.00015616,2]
[406895222,1772267499053,-860.84,0.00015616,2]
[406895223,1772267499067,-955.26,0.00015616,2]
[406895224,1772267499082,-500.0,0.00015616,2]
[406895225,1772267499097,-725.73,0.00015616,2]
[406895226,1772267499111,-914.38,0.00015616,2]
[406895227,1772267499125,-1116.21,0.00015616,2]
[406895228,1772267499141,-500.0,0.00015616,2]
[406895229,1772267499157,-500.0,0.00015616,2]
[406895230,1772267499173,-579.95,0.00015616,2]
[406895231,1772267499188,-500.0,0.00015616,2]
[406895232,1772267499199,-1326.22,0.00015616,2]
[406895233,1772267499208,-1036.26,0.00015616,2]
[406895234,1772267499221,-500.0,0.00015616,2]
[406895235,1772267499230,-936.85,0.00015616,2]
[406895236,1772267499240,-500.0,0.00015616,2]
[406895237,1772267499249,-500.0,0.00015616,2]
[406895238,1772267499258,-500.0,0.00015616,2]
[406895239,1772267499267,-500.0,0.00015616,2]
[406895240,1772267499277,-547.18,0.00015616,2]
[406895241,1772267499287,-500.0,0.00015616,2]
[406895242,1772267499297,-1250.68,0.00015616,2]
[406895243,1772267499307,-500.0,0.00015616,2]
[406895244,1772267499317,-1196.3,0.00015616,2]
[406895245,1772267499576,-1024.08,0.00015616,2]
[406895246,1772267499600,-363.13740705,0.00015616,2]
[406895247,1772267499619,-898.6,0.00015616,2]
[406895248,1772267499628,-500.0,0.00015616,2]
[406895249,1772267499638,-500.0,0.00015616,2]
[406895250,1772267499648,-609.4,0.00015616,2]
[406895251,1772267499658,-500.0,0.00015616,2]
[406895252,1772267499667,-151.0,0.00015616,2]
[406895253,1772267499677,-1312.05,0.00015616,2]
[406895254,1772267499686,-937.86,0.00015616,2]
[406895255,1772267499696,-651.8,0.00015616,2]
[406895256,1772267499705,-500.0,0.00015616,2]
[406895257,1772267499715,-500.0,0.00015616,2]
[406895258,1772267499724,-500.0,0.00015616,2]
[406895259,1772267499734,-500.0,0.00015616,2]
[406895260,1772267499744,-517.11,0.00015616,2]
[406895261,1772267499753,-500.0,0.00015616,2]
[406895262,1772267499763,-500.0,0.00015616,2]
[406895263,1772267499772,-500.0,0.00015616,2]
[406895264,1772267499782,-1446.65,0.00015616,2]
[406895265,1772267499792,-500.0,0.00015616,2]
[406895266,1772267499802,-1733.53,0.00015616,2]
[406895267,1772267499812,-500.0,0.00015616,2]
[406895268,1772267499821,-1436.12,0.00015616,2]
[406895269,1772267499831,-157.00529776,0.00015616,2]
[406895270,1772267499840,-500.0,0.00015616,2]
[406895271,1772267499850,-685.31,0.00015616,2]
[406895272,1772267499859,-580.66,0.00015616,2]
[406895273,1772267499869,-571.4,0.00015616,2]
[406895274,1772267499880,-864.92,0.00015616,2]
[406895275,1772267499890,-846.6,0.00015616,2]
[406895276,1772267499899,-1593.78,0.00015616,2]
[406895277,1772267499908,-750.44,0.00015616,2]
[406895278,1772267499917,-500.0,0.00015616,2]
[406895279,1772267499928,-500.0,0.00015616,2]
[406895280,1772267499937,-1521.42,0.00015616,2]
[406895281,1772267499946,-1247.19,0.00015616,2]
[406895282,1772267499955,-705.82,0.00015616,2]
[406895283,1772267499964,-500.0,0.00015616,2]
[406895284,1772267499974,-529.62,0.00015616,2]
[406895285,1772267499984,-583.32168311,0.00015616,2]
[406895286,1772267499993,-500.0,0.00015616,2]
[406895287,1772267500003,-500.0,0.00015616,2]
[406895288,1772267500012,-500.0,0.00015616,2]
[406895289,1772267500022,-745.32,0.00015616,2]
[406895290,1772267500031,-1605.01,0.00015616,2]
[406895291,1772267500041,-636.30144067,0.00015616,2]
[406895292,1772267500050,-500.0,0.00015616,2]
[406895293,1772267500060,-1610.8,0.00015616,2]
[406895294,1772267500069,-500.0,0.00015616,2]
[406895295,1772267500078,-500.0,0.00015616,2]
[406895296,1772267500087,-1001.72,0.00015616,2]
[406895297,1772267500097,-1059.56,0.00015616,2]
[406895298,1772267500106,-627.88,0.00015616,2]
[406895299,1772267500115,-500.0,0.00015616,2]
[406895300,1772267500125,-917.08,0.00015616,2]
[406895301,1772267500139,-500.0,0.00015616,2]
[406895302,1772267500148,-500.0,0.00015616,2]
[406895303,1772267500158,-529.27,0.00015616,2]
[406895304,1772267500167,-927.57,0.00015616,2]
[406895305,1772267500178,-650.87,0.00015616,2]
[406895306,1772267500187,-661.99,0.00015616,2]
[406895307,1772267500197,-500.0,0.00015616,2]
[406895308,1772267500207,-500.0,0.00015616,2]
[406895309,1772267500216,-818.16,0.00015616,2]
[406895310,1772267500226,-500.0,0.00015616,2]
[406895311,1772267500236,-1219.63,0.00015616,2]
[406895312,1772267500246,-500.0,0.00015616,2]
[406895313,1772267500256,-564.11,0.00015616,2]
[406895314,1772267500265,-268.18281233,0.00015616,2]
[406895315,1772267500274,-500.0,0.00015616,2]
[406895316,1772267500284,-500.0,0.00015616,2]
[406895317,1772267500293,-500.0,0.00015616,2]
[406895318,1772267500302,-500.0,0.00015616,2]
[406895319,1772267500311,-360.77691043,0.00015616,2]
[406895320,1772267500321,-500.0,0.00015616,2]
[406895321,1772267500331,-773.68,0.00015616,2]
[406895322,1772267500340,-500.0,0.00015616,2]
[406895323,1772267500350,-1058.67,0.00015616,2]
[406895324,1772267500367,-544.13,0.00015616,2]
[406895325,1772267500378,-500.0,0.00015616,2]
[406895326,1772267500388,-1354.43,0.00015616,2]
[406895327,1772267500398,-500.0,0.00015616,2]
[406895328,1772267500408,-500.0,0.00015616,2]
[406895329,1772267500418,-947.35,0.00015616,2]
[406895330,1772267500427,-500.0,0.00015616,2]
[406895331,1772267500437,-500.0,0.00015616,2]
[406895332,1772267500446,-577.2,0.00015616,2]
[406895333,1772267500456,-617.88,0.00015616,2]
[406895334,1772267500467,-1264.55,0.00015616,2]
[406895335,1772267500477,-609.45,0.00015616,2]
[406895336,1772267500487,-500.0,0.00015616,2]
[406895337,1772267500498,-787.95,0.00015616,2]
[406895338,1772267500511,-1665.88,0.00015616,2]
[406895339,1772267500520,-571.43,0.00015616,2]
[406895340,1772267500530,-500.0,0.00015616,2]
[406895341,1772267500539,-7573.22,0.00015616,2]
[406895342,1772267500549,-554.61,0.00015616,2]
[406895343,1772267500559,-500.0,0.00015616,2]
[406895344,1772267500568,-625.20004916,0.00015616,2]
[406895345,1772267500578,-500.0,0.00015616,2]
[406895346,1772267500587,-500.0,0.00015616,2]
[406895347,1772267500597,-500.0,0.00015616,2]
[406895348,1772267500606,-1743.64,0.00015616,2]
[406895349,1772267500615,-2006.98,0.00015616,2]
[406895350,1772267500624,-2108.79,0.00015616,2]
[406895351,1772267500634,-647.16,0.00015616,2]
[406895352,1772267500643,-500.0,0.00015616,2]
[406895353,1772267500652,-839.36,0.00015616,2]
[406895354,1772267500661,-878.12,0.00015616,2]
[406895355,1772267500670,-7180.71,0.00015616,2]
[406895356,1772267500679,-784.54,0.00015616,2]
[406895357,1772267500689,-696.62,0.00015616,2]
[406895358,1772267500698,-854.66,0.00015616,2]
[406895359,1772267500708,-1726.59,0.00015616,2]
[406895360,1772267500717,-500.0,0.00015616,2]
[406895361,1772267500727,-500.0,0.00015616,2]
[406895362,1772267500736,-1075.35,0.00015616,2]
[406895363,1772267500747,-5780.22,0.00015616,2]
[406895364,1772267500757,-1052.35,0.00015616,2]
[406895365,1772267500766,-1604.1,0.00015616,2]
[406895366,1772267500776,-617.93,0.00015616,2]
[406895367,1772267500786,-1438.35,0.00015616,2]
[406895368,1772267500795,-500.0,0.00015616,2]
[406895369,1772267500804,-500.0,0.00015616,2]
[406895370,1772267500813,-1671.97,0.00015616,2]
[406895371,1772267500822,-500.0,0.00015616,2]
[406895372,1772267500832,-500.0,0.00015616,2]
[406895373,1772267500842,-566.35,0.00015616,2]
[406895374,1772267500850,-180.27889265,0.00015616,2]
[406895375,1772267500859,-695.06,0.00015616,2]
[406895376,1772267500869,-500.0,0.00015616,2]
[406895377,1772267500878,-692.56,0.00015616,2]
[406895378,1772267500887,-1703.31,0.00015616,2]
[406895379,1772267500897,-1091.8,0.00015616,2]
[406895380,1772267500907,-526.21,0.00015616,2]
[406895381,1772267500916,-1946.78,0.00015616,2]
[406895382,1772267500925,-1093.05,0.00015616,2]
[406895383,1772267500935,-522.9,0.00015616,2]
[406895384,1772267500944,-1010.99,0.00015616,2]
[406895385,1772267500953,-597.64,0.00015616,2]
[406895386,1772267500963,-632.06,0.00015616,2]
[406895387,1772267500972,-1404.24,0.00015616,2]
[406895388,1772267500982,-500.0,0.00015616,2]
[406895389,1772267500992,-3447.77,0.00015616,2]
[406895390,1772267501001,-592.02,0.00015616,2]
[406895391,1772267501011,-500.0,0.00015616,2]
[406895392,1772267501020,-500.0,0.00015616,2]
[406895393,1772267501030,-1639.95,0.00015616,2]
[406895394,1772267501040,-500.0,0.00015616,2]
[406895395,1772267501049,-500.0,0.00015616,2]
[406895396,1772267501059,-766.57,0.00015616,2]
[406895397,1772267501069,-2199.16,0.00015616,2]
[406895398,1772267501078,-500.0,0.00015616,2]
[406895399,1772267501087,-515.11,0.00015616,2]
[406895400,1772267501097,-1033.14,0.00015616,2]
[406895401,1772267501106,-1309.19,0.00015616,2]
[406895402,1772267501116,-1688.18,0.00015616,2]
[406895403,1772267501125,-3009.71,0.00015616,2]
[406895404,1772267501136,-1567.57,0.00015616,2]
[406895405,1772267501148,-500.0,0.00015616,2]
[406895406,1772267501158,-1039.64,0.00015616,2]
[406895407,1772267501167,-500.0,0.00015616,2]
[406895408,1772267501179,-578.85,0.00015616,2]
[406895409,1772267501188,-468.95370827,0.00015616,2]
[406895410,1772267501198,-500.0,0.00015616,2]
[406895411,1772267501208,-500.0,0.00015616,2]
[406895412,1772267501219,-2382.93,0.00015616,2]
[406895413,1772267501228,-2151.2,0.00015616,2]
[406895414,1772267501238,-1096.15,0.00015616,2]
[406895415,1772267501249,-683.72,0.00015616,2]
[406895416,1772267501259,-832.49,0.00015616,2]
[406895417,1772267501268,-692.6,0.00015616,2]
[406895418,1772267501277,-500.0,0.00015616,2]
[406895419,1772267501287,-3399.35,0.00015616,2]
[406895420,1772267501297,-865.62,0.00015616,2]
[406895421,1772267501307,-929.25,0.00015616,2]
[406895422,1772267501316,-500.0,0.00015616,2]
[406895423,1772267501325,-856.18,0.00015616,2]
[406895424,1772267501335,-1271.22,0.00015616,2]
[406895425,1772267501345,-1063.54,0.00015616,2]
[406895426,1772267501354,-1000.0,0.00015616,2]
[406895427,1772267501364,-497.71228405,0.00015616,2]
[406895428,1772267501374,-1318.72,0.00015616,2]
[406895429,1772267501384,-705.79,0.00015616,2]
[406895430,1772267501394,-2424.89,0.00015616,2]
[406895431,1772267501407,-1446.29,0.00015616,2]
[406895432,1772267501416,-500.0,0.00015616,2]
[406895433,1772267501426,-2361.52,0.00015616,2]
[406895434,1772267501436,-500.0,0.00015616,2]
[406895435,1772267501445,-4592.95,0.00015616,2]
[406895436,1772267501455,-500.0,0.00015616,2]
[406895437,1772267501465,-2215.2,0.00015616,2]
[406895438,1772267501475,-1435.8,0.00015616,2]
[406895439,1772267501485,-1576.84,0.00015616,2]
[406895440,1772267501494,-2561.33,0.00015616,2]
[406895441,1772267501504,-1085.51,0.00015616,2]
[406895442,1772267501514,-500.0,0.00015616,2]
[406895443,1772267501524,-500.0,0.00015616,2]
[406895444,1772267501533,-717.42,0.00015616,2]
[406895445,1772267501543,-500.0,0.00015616,2]
[406895446,1772267501552,-500.0,0.00015616,2]
[406895447,1772267501561,-1108.2,0.00015616,2]
[406895448,1772267501570,-500.0,0.00015616,2]
[406895449,1772267501580,-500.0,0.00015616,2]
[406895450,1772267501589,-500.0,0.00015616,2]
[406895451,1772267501599,-3100.42,0.00015616,2]
[406895452,1772267501608,-1341.93,0.00015616,2]
[406895453,1772267501618,-1305.67,0.00015616,2]
[406895454,1772267501627,-500.0,0.00015616,2]
[406895455,1772267501637,-500.0,0.00015616,2]
[406895456,1772267501645,-1472.57,0.00015616,2]
[406895457,1772267501653,-561.98,0.00015616,2]
[406895458,1772267501661,-3197.66,0.00015616,2]
[406895459,1772267501670,-615.34,0.00015616,2]
[406895460,1772267501678,-699.96,0.00015616,2]
[406895461,1772267501686,-500.0,0.00015616,2]
[406895462,1772267501695,-647.4772369,0.00015616,2]
[406895463,1772267501704,-1020.13,0.00015616,2]
[406895464,1772267501712,-500.0,0.00015616,2]
[406895465,1772267501720,-182.3,0.00015616,2]
[406895466,1772267501729,-500.0,0.00015616,2]
[406895467,1772267501738,-596.63,0.00015616,2]
[406895468,1772267501747,-500.0,0.00015616,2]